[Event "Elitserien 2019/2020, round 7-9"]
[Site "Elite stadshotellet, Kungsgatan 6, Vaxjo, Sweden"]
[Date "2020.10.16"]
[Round "1.13"]
[White "Lokander, Martin"]
[Black "Kucuksari, Kaan"]
[Result "1-0"]
[TimeControl "90 minutes for 40 moves + 30 minutes for the rest of the game + 30 seconds per move from move one."]
[WhiteTitle "IM"]
[BlackTitle "FM"]
[WhiteFideId "1709569"]
[BlackFideId "6380166"]
[WhiteElo "2399"]
[BlackElo "2308"]

1. d4 {[%clk 01:30:56]} {[%emt 00:00:03]} Nf6 {[%clk 01:30:54]} {[%emt
00:00:06]} 2. c4 {[%clk 01:31:22]} {[%emt 00:00:03]} e6 {[%clk 01:31:20]}
{[%emt 00:00:04]} 3. Nf3 {[%clk 01:31:49]} {[%emt 00:00:04]} b6 {[%clk
01:31:43]} {[%emt 00:00:07]} 4. Bf4 {[%clk 01:29:36]} {[%emt 00:02:43]} Bb7
{[%clk 01:32:08]} {[%emt 00:00:05]} 5. e3 {[%clk 01:30:01]} {[%emt 00:00:05]}
Be7 {[%clk 01:32:34]} {[%emt 00:00:05]} 6. Nc3 {[%clk 01:29:45]} {[%emt
00:00:45]} d5 {[%clk 01:32:57]} {[%emt 00:00:07]} 7. cxd5 {[%clk 01:28:40]}
{[%emt 00:01:36]} Nxd5 {[%clk 01:33:20]} {[%emt 00:00:07]} 8. Nxd5 {[%clk
01:29:04]} {[%emt 00:00:05]} Qxd5 {[%clk 01:32:46]} {[%emt 00:01:03]} 9. Bd3
{[%clk 01:21:50]} {[%emt 00:07:45]} Qa5+ {[%clk 01:24:34]} {[%emt 00:08:41]} 10.
Nd2 {[%clk 01:11:35]} {[%emt 00:10:45]} c5 {[%clk 01:16:47]} {[%emt 00:08:17]}
11. dxc5 {[%clk 01:03:10]} {[%emt 00:08:55]} O-O {[%clk 01:11:01]} {[%emt
00:06:16]} 12. O-O {[%clk 00:59:01]} {[%emt 00:04:40]} Qxc5 {[%clk 01:11:29]}
{[%emt 00:00:02]} 13. Rc1 {[%clk 00:58:52]} {[%emt 00:00:39]} Qb4 {[%clk
01:07:21]} {[%emt 00:04:38]} 14. Nc4 {[%clk 00:38:27]} {[%emt 00:20:55]} Bd5
{[%clk 00:56:58]} {[%emt 00:10:53]} 15. Qe2 {[%clk 00:26:40]} {[%emt 00:12:17]}
Nd7 {[%clk 00:45:09]} {[%emt 00:12:19]} 16. e4 {[%clk 00:22:09]} {[%emt
00:05:01]} Bb7 {[%clk 00:40:57]} {[%emt 00:04:41]} 17. Bd2 {[%clk 00:21:22]}
{[%emt 00:01:18]} Qc5 {[%clk 00:33:01]} {[%emt 00:08:26]} 18. Na5 {[%clk
00:21:12]} {[%emt 00:00:40]} bxa5 {[%clk 00:33:25]} {[%emt 00:00:06]} 19. Rxc5
{[%clk 00:21:38]} {[%emt 00:00:04]} Nxc5 {[%clk 00:33:52]} {[%emt 00:00:03]} 20.
Bxa5 {[%clk 00:21:44]} {[%emt 00:00:25]} Nxd3 {[%clk 00:33:23]} {[%emt
00:00:59]} 21. Qxd3 {[%clk 00:22:05]} {[%emt 00:00:09]} Bc6 {[%clk 00:33:46]}
{[%emt 00:00:06]} 22. Rc1 {[%clk 00:21:40]} {[%emt 00:00:55]} Rfc8 {[%clk
00:33:46]} {[%emt 00:00:30]} 23. h3 {[%clk 00:20:53]} {[%emt 00:01:18]} a6
{[%clk 00:31:17]} {[%emt 00:02:58]} 24. a4 {[%clk 00:19:36]} {[%emt 00:01:47]}
h6 {[%clk 00:28:41]} {[%emt 00:03:07]} 25. b4 {[%clk 00:18:10]} {[%emt
00:01:55]} Kh7 {[%clk 00:22:09]} {[%emt 00:07:02]} 26. Kh2 {[%clk 00:16:32]}
{[%emt 00:02:08]} Bg5 {[%clk 00:13:00]} {[%emt 00:09:38]} 27. Ra1 {[%clk
00:13:13]} {[%emt 00:03:50]} Be8 {[%clk 00:10:00]} {[%emt 00:03:30]} 28. Bb6
{[%clk 00:12:11]} {[%emt 00:01:32]} Bf4+ {[%clk 00:08:30]} {[%emt 00:02:00]} 29.
g3 {[%clk 00:11:35]} {[%emt 00:01:06]} Be5 {[%clk 00:08:59]} 30. Ra3 {[%clk
00:10:15]} {[%emt 00:01:49]} Kg8 {[%clk 00:02:31]} {[%emt 00:06:59]} 31. Be3
{[%clk 00:08:12]} {[%emt 00:02:33]} Bc6 {[%clk 00:00:51]} {[%emt 00:02:10]} 32.
b5 {[%clk 00:03:07]} {[%emt 00:05:34]} axb5 {[%clk 00:00:50]} {[%emt 00:00:32]}
33. axb5 {[%clk 00:03:35]} {[%emt 00:00:02]} Rxa3 {[%clk 00:01:12]} {[%emt
00:00:08]} 34. Qxa3 {[%clk 00:03:58]} {[%emt 00:00:07]} Bxe4 {[%clk 00:00:36]}
{[%emt 00:01:06]} 35. b6 {[%clk 00:02:22]} {[%emt 00:02:06]} Ra8 {[%clk
00:00:39]} {[%emt 00:00:26]} 36. Qb4 {[%clk 00:02:12]} {[%emt 00:00:41]} Bd5
{[%clk 00:00:37]} {[%emt 00:00:32]} 37. Bd4 {[%clk 00:01:58]} {[%emt 00:00:43]}
Bxd4 {[%clk 00:00:36]} {[%emt 00:00:32]} 38. Qxd4 {[%clk 00:02:21]} {[%emt
00:00:07]} Rb8 {[%clk 00:00:34]} {[%emt 00:00:31]} 39. Qc5 {[%clk 00:02:19]}
{[%emt 00:00:32]} Rb7 {[%clk 00:00:38]} {[%emt 00:00:26]} 40. f4 {[%clk
00:02:14]} {[%emt 00:00:36]} g6 {[%clk 00:00:33]} {[%emt 00:00:35]} 41. Qd6
{[%clk 00:02:27]} {[%emt 00:00:16]} h5 {[%clk 00:00:39]} {[%emt 00:00:25]} 42.
Kg1 {[%clk 00:02:39]} {[%emt 00:00:18]} f5 {[%clk 00:10:09]} {[%emt 00:21:00]}
43. Kf2 {[%clk 00:32:38]} {[%emt 00:00:31]} Rf7 {[%clk 00:09:36]} {[%emt
00:01:03]} 44. Ke3 {[%clk 00:32:45]} {[%emt 00:00:23]} Kg7 {[%clk 00:09:24]}
{[%emt 00:00:42]} 45. Kd4 {[%clk 00:33:04]} {[%emt 00:00:11]} Kh7 {[%clk
00:09:28]} {[%emt 00:00:26]} 46. Ke5 {[%clk 00:31:52]} {[%emt 00:01:42]} Kg7
{[%clk 00:07:06]} {[%emt 00:02:52]} 47. Qd8 {[%clk 00:32:07]} {[%emt 00:00:15]}
Rf8 {[%clk 00:07:00]} {[%emt 00:00:35]} 48. Qc7+ {[%clk 00:32:14]} {[%emt
00:00:23]} Rf7 {[%clk 00:07:18]} {[%emt 00:00:13]} 49. Qc3 {[%clk 00:32:19]}
{[%emt 00:00:25]} Rd7 {[%clk 00:06:25]} {[%emt 00:01:23]} 50. Qc8 {[%clk
00:32:21]} {[%emt 00:00:29]} Rf7 {[%clk 00:06:14]} {[%emt 00:00:41]} 51. Kd6
{[%clk 00:32:44]} {[%emt 00:00:06]} Kh7 {[%clk 00:05:55]} {[%emt 00:00:50]} 52.
Kc5 {[%clk 00:32:57]} {[%emt 00:00:17]} Kg7 {[%clk 00:05:35]} {[%emt 00:00:50]}
53. Kb5 {[%clk 00:33:23]} {[%emt 00:00:04]} Kh7 {[%clk 00:05:36]} {[%emt
00:00:29]} 54. Kc5 {[%clk 00:26:54]} {[%emt 00:06:59]} Kg7 {[%clk 00:05:56]}
{[%emt 00:00:11]} 55. Kd6 {[%clk 00:27:21]} {[%emt 00:00:03]} Kh7 {[%clk
00:06:22]} {[%emt 00:00:04]} 56. Qc3 {[%clk 00:26:57]} {[%emt 00:00:53]} Kg8
{[%clk 00:06:38]} {[%emt 00:00:13]} 57. Qc1 {[%clk 00:25:10]} {[%emt 00:02:18]}
Kh7 {[%clk 00:06:46]} {[%emt 00:00:21]} 58. Qc2 {[%clk 00:25:13]} {[%emt
00:00:28]} Kg7 {[%clk 00:06:29]} {[%emt 00:00:47]} 59. Ke5 {[%clk 00:25:37]}
{[%emt 00:00:06]} Rd7 {[%clk 00:03:23]} {[%emt 00:03:36]} 60. Qc8 {[%clk
00:25:23]} {[%emt 00:00:44]} Rf7 {[%clk 00:03:25]} {[%emt 00:00:28]} 61. Qd8
{[%clk 00:25:42]} {[%emt 00:00:11]} Rf8 {[%clk 00:03:33]} {[%emt 00:00:22]} 62.
Qe7+ {[%clk 00:25:29]} {[%emt 00:00:43]} Rf7 {[%clk 00:04:02]} {[%emt
00:00:02]} 63. Qg5 {[%clk 00:23:37]} {[%emt 00:02:22]} Kh7 {[%clk 00:00:56]}
{[%emt 00:03:36]} 64. Kd6 {[%clk 00:23:16]} {[%emt 00:00:51]} Kg7 {[%clk
00:01:17]} {[%emt 00:00:09]} 65. Qh4 {[%clk 00:22:55]} {[%emt 00:00:51]} Rb7
{[%clk 00:01:12]} {[%emt 00:00:32]} 66. Kc5 {[%clk 00:22:47]} {[%emt 00:00:40]}
Rd7 {[%clk 00:00:49]} {[%emt 00:00:51]} 67. Qg5 {[%clk 00:22:12]} {[%emt
00:01:08]} Bf3 {[%clk 00:00:54]} {[%emt 00:00:25]} 68. Kb4 {[%clk 00:21:26]}
{[%emt 00:01:15]} Rd4+ {[%clk 00:01:06]} {[%emt 00:00:18]} 69. Kc3 {[%clk
00:21:44]} {[%emt 00:00:12]} Rd7 {[%clk 00:01:35]} {[%emt 00:00:02]} 70. Kc4
{[%clk 00:20:48]} {[%emt 00:01:27]} Be2+ {[%clk 00:01:49]} {[%emt 00:00:16]} 71.
Kc5 {[%clk 00:20:58]} {[%emt 00:00:20]} Bf3 {[%clk 00:02:18]} 72. Kb5 {[%clk
00:21:14]} {[%emt 00:00:13]} Bd1 {[%clk 00:01:12]} {[%emt 00:01:35]} 73. Kc6
{[%clk 00:20:50]} {[%emt 00:00:54]} Ba4+ {[%clk 00:01:41]} {[%emt 00:00:01]} 74.
Kc5 {[%clk 00:21:17]} {[%emt 00:00:04]} Bd1 {[%clk 00:01:55]} {[%emt 00:00:16]}
75. g4 {[%clk 00:20:10]} {[%emt 00:01:37]} Bf3 {[%clk 00:00:34]} {[%emt
00:01:51]} 76. gxh5 {[%clk 00:19:36]} {[%emt 00:01:04]} Bxh5 {[%clk 00:01:00]}
{[%emt 00:00:03]} 77. Kc6 {[%clk 00:19:44]} {[%emt 00:00:22]} Rd3 {[%clk
00:00:35]} {[%emt 00:00:54]} 78. Qe7+ {[%clk 00:19:12]} {[%emt 00:01:03]} Kh6
{[%clk 00:00:49]} {[%emt 00:00:14]} 79. Qf8 {[%clk 00:17:45]} {[%emt 00:01:59]}
Kh7 {[%clk 00:01:18]} {[%emt 00:00:01]} 80. Qf7+ {[%clk 00:18:09]} {[%emt
00:00:06]} Kh8 {[%clk 00:01:24]} {[%emt 00:00:22]} 81. b7 {[%clk 00:17:56]}
{[%emt 00:00:45]} Bf3+ {[%clk 00:01:46]} {[%emt 00:00:08]} 82. Kc7 {[%clk
00:17:31]} {[%emt 00:00:55]} Bxb7 {[%clk 00:02:09]} {[%emt 00:00:07]} 83. Kxb7
{[%clk 00:17:23]} {[%emt 00:00:37]} Rxh3 {[%clk 00:02:26]} {[%emt 00:00:14]} 84.
Kc6 {[%clk 00:17:37]} {[%emt 00:00:16]} Rd3 {[%clk 00:01:30]} {[%emt 00:01:25]}
85. Qxg6 {[%clk 00:18:01]} {[%emt 00:00:08]} Rh3 {[%clk 00:00:34]} {[%emt
00:01:25]} 86. Kd6 {[%clk 00:18:10]} {[%emt 00:00:21]} Rh7 {[%clk 00:00:54]}
{[%emt 00:00:10]} 87. Qe8+ {[%clk 00:18:16]} {[%emt 00:00:24]} Kg7 {[%clk
00:01:22]} {[%emt 00:00:02]} 88. Qe7+ {[%clk 00:18:27]} {[%emt 00:00:19]} Kg8
{[%clk 00:01:37]} {[%emt 00:00:15]} 89. Qxe6+ {[%clk 00:18:43]} {[%emt
00:00:15]} Rf7 {[%clk 00:02:06]} {[%emt 00:00:01]} 90. Qg6+ {[%clk 00:18:55]}
{[%emt 00:00:18]} Kh8 {[%clk 00:02:30]} {[%emt 00:00:05]} 91. Qh6+ {[%clk
00:18:49]} {[%emt 00:00:36]} Kg8 {[%clk 00:02:55]} {[%emt 00:00:05]} 92. Ke6
{[%clk 00:19:08]} {[%emt 00:00:11]} Rf8 {[%clk 00:02:42]} {[%emt 00:00:44]} 93.
Qg6+ {[%clk 00:19:11]} {[%emt 00:00:26]} Kh8 {[%clk 00:03:11]} 94. Qxf5 {[%clk
00:19:18]} {[%emt 00:00:24]} Re8+ {[%clk 00:02:11]} {[%emt 00:01:30]} 95. Kd5
{[%clk 00:19:37]} {[%emt 00:00:10]} Rd8+ {[%clk 00:02:32]} {[%emt 00:00:09]} 96.
Kc6 {[%clk 00:19:58]} {[%emt 00:00:09]} Rg8 {[%clk 00:02:57]} {[%emt 00:00:05]}
97. Qh5+ {[%clk 00:20:07]} {[%emt 00:00:22]} Kg7 {[%clk 00:03:25]} {[%emt
00:00:01]} 98. Kd7 {[%clk 00:20:20]} {[%emt 00:00:17]} Rf8 {[%clk 00:02:47]}
{[%emt 00:01:08]} 99. Qg5 {[%clk 00:20:46]} {[%emt 00:00:05]} Kh7 {[%clk
00:03:09]} {[%emt 00:00:08]} 100. f5 {[%clk 00:21:00]} {[%emt 00:00:16]} Ra8
{[%clk 00:03:08]} {[%emt 00:00:31]} 101. Qg6 {[%clk 00:21:03]} {[%emt
00:00:27]} Kh8 {[%clk 00:03:36]} {[%emt 00:00:01]} 102. Qe8+ {[%clk 00:21:20]}
{[%emt 00:00:14]} 1-0

[Event "Elitserien 2019/2020, round 7-9"]
[Site "Elite stadshotellet, Kungsgatan 6, Vaxjo, Sweden"]
[Date "2020.10.16"]
[Round "1.14"]
[White "Mauritsson, Sebastian"]
[Black "Arman, Deniz"]
[Result "1-0"]
[TimeControl "90 minutes for 40 moves + 30 minutes for the rest of the game + 30 seconds per move from move one."]
[WhiteTitle "FM"]
[BlackTitle "FM"]
[WhiteFideId "1707892"]
[BlackFideId "6302106"]
[WhiteElo "2362"]
[BlackElo "2318"]

1. e4 {[%clk 01:30:57]} {[%emt 00:00:02]} c5 {[%clk 01:28:27]} {[%emt
00:02:32]} 2. Nf3 {[%clk 01:31:19]} {[%emt 00:00:09]} Nc6 {[%clk 01:28:41]}
{[%emt 00:00:16]} 3. d4 {[%clk 01:31:43]} {[%emt 00:00:06]} cxd4 {[%clk
01:29:04]} {[%emt 00:00:06]} 4. Nxd4 {[%clk 01:32:09]} {[%emt 00:00:04]} g6
{[%clk 01:24:34]} {[%emt 00:04:58]} 5. Nc3 {[%clk 01:31:32]} {[%emt 00:01:10]}
Bg7 {[%clk 01:24:48]} {[%emt 00:00:15]} 6. Be3 {[%clk 01:31:17]} {[%emt
00:00:45]} Nf6 {[%clk 01:24:02]} {[%emt 00:01:15]} 7. Bc4 {[%clk 01:31:09]}
{[%emt 00:00:38]} O-O {[%clk 01:24:15]} {[%emt 00:00:17]} 8. Bb3 {[%clk
01:31:12]} {[%emt 00:00:28]} d5 {[%clk 01:24:15]} {[%emt 00:00:30]} 9. exd5
{[%clk 01:10:33]} {[%emt 00:21:09]} Na5 {[%clk 01:24:28]} {[%emt 00:00:15]} 10.
Nde2 {[%clk 01:07:47]} {[%emt 00:03:17]} b6 {[%clk 01:12:33]} {[%emt 00:12:26]}
11. O-O {[%clk 00:47:03]} {[%emt 00:21:14]} Bb7 {[%clk 01:05:10]} {[%emt
00:07:52]} 12. d6 {[%clk 00:46:55]} {[%emt 00:00:40]} e6 {[%clk 00:45:50]}
{[%emt 00:19:49]} 13. Qd2 {[%clk 00:42:52]} {[%emt 00:04:33]} Nxb3 {[%clk
00:42:15]} {[%emt 00:04:06]} 14. axb3 {[%clk 00:43:17]} {[%emt 00:00:05]} Qd7
{[%clk 00:41:51]} {[%emt 00:00:54]} 15. Rfd1 {[%clk 00:41:47]} {[%emt
00:01:59]} Ng4 {[%clk 00:31:00]} {[%emt 00:11:20]} 16. f3 {[%clk 00:38:20]}
{[%emt 00:03:58]} Nxe3 {[%clk 00:30:04]} {[%emt 00:01:26]} 17. Qxe3 {[%clk
00:38:48]} {[%emt 00:00:01]} Rfc8 {[%clk 00:27:22]} {[%emt 00:03:13]} 18. Rd2
{[%clk 00:29:14]} {[%emt 00:10:05]} Rc5 {[%clk 00:23:40]} {[%emt 00:04:11]} 19.
Ng3 {[%clk 00:24:44]} {[%emt 00:05:00]} f5 {[%clk 00:18:10]} {[%emt 00:06:00]}
20. Nge2 {[%clk 00:23:51]} {[%emt 00:01:23]} Re5 {[%clk 00:14:18]} {[%emt
00:04:21]} 21. Qd3 {[%clk 00:22:38]} {[%emt 00:01:44]} g5 {[%clk 00:09:45]}
{[%emt 00:05:03]} 22. b4 {[%clk 00:20:56]} {[%emt 00:02:12]} a5 {[%clk
00:05:53]} {[%emt 00:04:22]} 23. bxa5 {[%clk 00:19:56]} {[%emt 00:01:31]} bxa5
{[%clk 00:05:59]} {[%emt 00:00:24]} 24. Qc4 {[%clk 00:16:54]} {[%emt 00:03:32]}
Rc8 {[%clk 00:06:24]} {[%emt 00:00:04]} 25. Qa4 {[%clk 00:16:18]} {[%emt
00:01:06]} Bc6 {[%clk 00:06:31]} {[%emt 00:00:23]} 26. Qb3 {[%clk 00:16:17]}
{[%emt 00:00:31]} g4 {[%clk 00:03:53]} {[%emt 00:03:08]} 27. f4 {[%clk
00:14:11]} {[%emt 00:02:36]} Qa7+ {[%clk 00:02:55]} {[%emt 00:01:27]} 28. Kh1
{[%clk 00:08:20]} {[%emt 00:06:21]} Qf2 {[%clk 00:02:06]} {[%emt 00:01:19]} 29.
Rg1 {[%clk 00:08:31]} {[%emt 00:00:19]} Re3 {[%clk 00:00:50]} {[%emt 00:01:47]}
30. d7 {[%clk 00:09:00]} {[%emt 00:00:02]} Rd8 {[%clk 00:00:35]} {[%emt
00:00:45]} 31. Qb6 {[%clk 00:09:26]} {[%emt 00:00:03]} Rxd7 {[%clk 00:00:32]}
{[%emt 00:00:33]} 32. Rxd7 {[%clk 00:09:44]} {[%emt 00:00:12]} Bxg2+ {[%emt
00:00:33]} 33. Rxg2 {[%clk 00:10:11]} {[%emt 00:00:01]} Qf1+ {[%clk 00:00:32]}
{[%emt 00:00:28]} 34. Ng1 {[%clk 00:10:15]} {[%emt 00:00:26]} Qxf4 {[%clk
00:00:39]} {[%emt 00:00:23]} 35. Qd8+ {[%clk 00:08:59]} {[%emt 00:01:45]} Bf8
{[%clk 00:01:04]} {[%emt 00:00:05]} 36. Qe8 {[%clk 00:08:14]} {[%emt 00:01:15]}
1-0

[Event "Elitserien 2019/2020, round 7-9"]
[Site "Elite stadshotellet, Kungsgatan 6, Vaxjo, Sweden"]
[Date "2020.10.16"]
[Round "1.15"]
[White "Olund, Joar"]
[Black "Dragicevic, Drazen"]
[Result "1/2-1/2"]
[TimeControl "90 minutes for 40 moves + 30 minutes for the rest of the game + 30 seconds per move from move one."]
[WhiteTitle "FM"]
[BlackTitle "FM"]
[WhiteFideId "1714848"]
[BlackFideId "1707922"]
[WhiteElo "2322"]
[BlackElo "2286"]

1. d4 {[%clk 01:30:57]} {[%emt 00:00:03]} Nf6 {[%clk 01:30:48]} {[%emt
00:00:12]} 2. Bg5 {[%clk 01:31:19]} {[%emt 00:00:09]} e6 {[%clk 01:30:14]}
{[%emt 00:01:04]} 3. e4 {[%clk 01:31:40]} {[%emt 00:00:09]} h6 {[%clk
01:25:53]} {[%emt 00:04:51]} 4. Bxf6 {[%clk 01:31:53]} {[%emt 00:00:16]} Qxf6
{[%clk 01:26:16]} {[%emt 00:00:06]} 5. c3 {[%clk 01:32:07]} {[%emt 00:00:16]}
c5 {[%clk 01:19:44]} {[%emt 00:07:02]} 6. Nf3 {[%clk 01:25:58]} {[%emt
00:06:39]} cxd4 {[%clk 01:10:42]} {[%emt 00:09:31]} 7. cxd4 {[%clk 01:26:01]}
{[%emt 00:00:28]} Bb4+ {[%clk 01:06:27]} {[%emt 00:04:44]} 8. Nbd2 {[%clk
01:17:29]} {[%emt 00:09:02]} Qf4 {[%clk 00:49:39]} {[%emt 00:17:18]} 9. Bd3
{[%clk 01:09:56]} {[%emt 00:08:03]} Nc6 {[%clk 00:47:04]} {[%emt 00:03:06]} 10.
a3 {[%clk 01:09:42]} {[%emt 00:00:44]} Bxd2+ {[%clk 00:45:18]} {[%emt
00:02:16]} 11. Qxd2 {[%clk 01:09:53]} {[%emt 00:00:19]} Qxd2+ {[%clk 00:45:05]}
{[%emt 00:00:43]} 12. Kxd2 {[%clk 01:10:11]} {[%emt 00:00:12]} d6 {[%clk
00:42:32]} {[%emt 00:03:03]} 13. Rac1 {[%clk 01:05:22]} {[%emt 00:05:19]} Bd7
{[%clk 00:37:22]} {[%emt 00:05:40]} 14. Rc3 {[%clk 00:55:52]} {[%emt 00:10:00]}
Kd8 {[%clk 00:34:07]} {[%emt 00:03:45]} 1/2-1/2

[Event "Elitserien 2019/2020, round 7-9"]
[Site "Elite stadshotellet, Kungsgatan 6, Vaxjo, Sweden"]
[Date "2020.10.16"]
[Round "1.16"]
[White "Jogstad, Martin"]
[Black "Thorn, Eric"]
[Result "1-0"]
[TimeControl "90 minutes for 40 moves + 30 minutes for the rest of the game + 30 seconds per move from move one."]
[WhiteTitle "FM"]
[BlackTitle "FM"]
[WhiteFideId "1715364"]
[BlackFideId "1710729"]
[WhiteElo "2302"]
[BlackElo "2262"]

1. d4 {[%clk 01:30:46]} {[%emt 00:00:13]} Nf6 {[%clk 01:30:52]} {[%emt
00:00:08]} 2. c4 {[%clk 01:31:09]} {[%emt 00:00:08]} e6 {[%clk 01:31:15]}
{[%emt 00:00:07]} 3. g3 {[%clk 01:31:32]} {[%emt 00:00:06]} d5 {[%clk
01:31:09]} {[%emt 00:00:36]} 4. Nf3 {[%clk 01:31:56]} {[%emt 00:00:07]} Be7
{[%clk 01:31:14]} {[%emt 00:00:25]} 5. Bg2 {[%clk 01:32:18]} {[%emt 00:00:07]}
O-O {[%clk 01:31:30]} {[%emt 00:00:15]} 6. O-O {[%clk 01:32:42]} {[%emt
00:00:06]} dxc4 {[%clk 01:31:21]} {[%emt 00:00:39]} 7. Ne5 {[%clk 01:33:06]}
{[%emt 00:00:07]} Nc6 {[%clk 01:31:09]} {[%emt 00:00:42]} 8. Nxc6 {[%clk
01:32:59]} {[%emt 00:00:37]} bxc6 {[%clk 01:31:06]} {[%emt 00:00:32]} 9. Na3
{[%clk 01:33:23]} {[%emt 00:00:07]} Bxa3 {[%clk 01:31:08]} {[%emt 00:00:29]} 10.
bxa3 {[%clk 01:30:43]} {[%emt 00:03:10]} Ba6 {[%clk 01:30:39]} {[%emt
00:00:58]} 11. Qd2 {[%clk 01:30:39]} {[%emt 00:00:35]} Rb8 {[%clk 01:29:02]}
{[%emt 00:02:06]} 12. Qa5 {[%clk 01:30:27]} {[%emt 00:00:42]} Rb6 {[%clk
01:29:22]} {[%emt 00:00:10]} 13. a4 {[%clk 01:30:17]} {[%emt 00:00:40]} Qd6
{[%clk 01:29:07]} {[%emt 00:00:45]} 14. a3 {[%clk 01:30:35]} {[%emt 00:00:12]}
Rd8 {[%clk 01:25:20]} {[%emt 00:04:17]} 15. Bf4 {[%clk 01:15:16]} {[%emt
00:15:49]} Qd7 {[%clk 01:13:13]} {[%emt 00:12:37]} 16. e4 {[%clk 01:01:31]}
{[%emt 00:14:16]} Qc8 {[%clk 01:02:18]} {[%emt 00:11:24]} 17. Rfd1 {[%clk
00:56:40]} {[%emt 00:05:21]} Rd7 {[%clk 00:57:46]} {[%emt 00:05:02]} 18. Bg5
{[%clk 00:51:51]} {[%emt 00:05:19]} Ne8 {[%clk 00:38:49]} {[%emt 00:19:27]} 19.
Be3 {[%clk 00:46:08]} {[%emt 00:06:13]} Nd6 {[%clk 00:30:46]} {[%emt 00:08:34]}
20. d5 {[%clk 00:44:17]} {[%emt 00:02:20]} cxd5 {[%clk 00:28:44]} {[%emt
00:02:32]} 21. exd5 {[%clk 00:44:09]} {[%emt 00:00:38]} Nb7 {[%clk 00:27:59]}
{[%emt 00:01:15]} 22. Qe1 {[%clk 00:42:46]} {[%emt 00:01:53]} Rbd6 {[%clk
00:22:28]} {[%emt 00:06:01]} 23. dxe6 {[%clk 00:41:24]} {[%emt 00:01:52]} Rxd1
{[%clk 00:20:02]} {[%emt 00:02:56]} 24. exf7+ {[%clk 00:39:40]} {[%emt
00:02:14]} Kxf7 {[%clk 00:06:02]} {[%emt 00:14:30]} 25. Rxd1 {[%clk 00:39:41]}
{[%emt 00:00:29]} Rxd1 {[%clk 00:05:10]} {[%emt 00:01:23]} 26. Qxd1 {[%clk
00:39:57]} {[%emt 00:00:12]} Qf5 {[%clk 00:02:47]} {[%emt 00:02:54]} 27. g4
{[%clk 00:33:52]} {[%emt 00:06:35]} Qd3 {[%clk 00:02:24]} {[%emt 00:00:52]} 28.
Bd5+ {[%clk 00:34:00]} {[%emt 00:00:23]} Ke8 {[%clk 00:01:22]} {[%emt
00:01:32]} 29. Bc6+ {[%clk 00:28:19]} {[%emt 00:06:10]} Ke7 {[%clk 00:01:38]}
{[%emt 00:00:14]} 30. Qe1 {[%clk 00:15:25]} {[%emt 00:13:24]} Kd6 {[%clk
00:01:40]} {[%emt 00:00:29]} 31. Be8 {[%clk 00:14:54]} {[%emt 00:01:01]} Qe4
{[%clk 00:01:23]} {[%emt 00:00:47]} 32. Qd1+ {[%clk 00:09:46]} {[%emt
00:05:38]} Qd3 {[%clk 00:01:11]} {[%emt 00:00:42]} 33. Qf3 {[%clk 00:08:40]}
{[%emt 00:01:36]} c5 {[%clk 00:00:57]} {[%emt 00:00:44]} 34. Qf4+ {[%clk
00:08:08]} {[%emt 00:01:01]} Ke7 {[%clk 00:00:46]} {[%emt 00:00:42]} 35. Qf7+
{[%clk 00:07:06]} {[%emt 00:01:32]} Kd8 {[%clk 00:01:10]} {[%emt 00:00:06]} 36.
Bg5+ {[%clk 00:04:39]} {[%emt 00:02:56]} Kc8 {[%clk 00:01:37]} {[%emt
00:00:04]} 37. Qe6+ {[%clk 00:04:48]} {[%emt 00:00:21]} Kc7 {[%clk 00:01:47]}
{[%emt 00:00:20]} 38. Qc6+ {[%clk 00:04:24]} {[%emt 00:00:54]} 1-0